Cogmind - Beta 16 @@@ ROGUE MODE // 2025.11.02 @ 22:49:08 Player: FAQ Result: Destroyed by S-27 Virus with Autogun Performance ------------- Evolutions (6) 3000 Regions Visited (18) 3600 Robots Destroyed (139) 695 Value Destroyed (5086) 5086 Prototype IDs (33) 660 Alien Tech Used (0) 0 Bonus (3343) 3343 TOTAL SCORE: 16384 Bonus ------- High Alert Combat Kills 239 Follower Combat Kills 1404 Entered Garrisons 400 Used RIF Installer 500 Entered DSFs 500 Aligned with FarCom 300 Cogmind --------- Core Integrity 0/1150 Matter 300/300 Energy 100/100 System Corruption 4% Temperature Cool (0) Movement Core (50) Location -4/Garrison Parts ------- > --- POWER (1) -------- (None) > --- PROPULSION (7) --- (None) > --- UTILITY (8) ------ Improved Signal Interpreter > --- WEAPON (3) ------- (None) > --- INVENTORY (5) ---- Advanced Sensor Array Authchip [R/NC] Relay Coupler [Grunt] (32) Tesla Rifle Remote Datajack Peak State ------------ > --- POWER ------------ Improved Deuterium Engine > --- PROPULSION ------- Cesium-ion Thruster Nuclear Pulse Array Nuclear Pulse Array Nuclear Pulse Array > --- UTILITY ---------- Medium Storage Unit Superbattery Improved Signal Interpreter Improved Melee Analysis Suite Advanced Launcher Guidance Computer Improved Target Analyzer Advanced Reaction Control System Relay Coupler [Grunt] > --- WEAPON ----------- Tesla Rifle Katana Ripper > --- INVENTORY -------- Cooled Nuclear Pulse Thruster Advanced Sensor Array Core Analyzer Advanced Reaction Control System Hacking Suite Authchip [R/NC] Relay Coupler [Grunt] Heavy Phase Cannon Heavy Phase Cannon Remote Datajack [Rating: 101] Favorites ----------- Power Ion Engine Engine Ion Engine Power Core Nuclear Core Propulsion Light Treads Treads Light Treads Leg Flexi-carbon Leg Flight Unit Nuclear Pulse Array Utility Large Storage Unit Device Improved Heat Sink Storage Large Storage Unit Processor Visual Processing Unit Hackware Relay Coupler [Grunt] Protection Improved Utility Shielding Weapon Improved Spread Laser Energy Gun Improved Spread Laser Energy Cannon Ion Cannon Ballistic Gun Hypervelocity Gauss Rifle Launcher Improved Grenade Launcher Special Weapon Remote Datajack Slashing Weapon Katana Build | -11 -10 -10 -10 -9 -8 -8 -8 -7 -7 -7 -6 -6 -5 -5 -5 -5 -4 -4 ------- Run | Yrd Mat Min Exi Min Mat Gar Mat Fac Low Low Fac Ext Fac Was Fac DSF Fac Gar Slots Evolved 12 | . . . . . 4 . . 2 . . 2 . 2 . . . 2 . Power . | . . . . . . . . . . . . . . . . . . . Propulsion 5 | . . . . . 1 . . . . . 2 . 1 . . . 1 . Utility 6 | . . . . . 3 . . 2 . . . . . . . . 1 . Weapon 1 | . . . . . . . . . . . . . 1 . . . . . Parts Attached 105 | 6 8 2 2 . 18 9 13 2 2 1 7 13 1 1 1 4 6 9 Power 16 | 1 3 1 . . 3 1 3 . . . 1 1 . . 1 . . 1 Engine 11 | 1 3 1 . . 3 1 1 . . . . 1 . . . . . . Core 5 | . . . . . . . 2 . . . 1 . . . 1 . . 1 Reactor . | . . . . . . . . . . . . . . . . . . . Propulsion 35 | 2 2 . . . 8 4 5 . . 1 3 3 1 . . 2 . 4 Treads 23 | 2 2 . . . 8 1 5 . . 1 3 1 . . . . . . Leg 2 | . . . . . . . . . . . . . . . . . . 2 Wheel . | . . . . . . . . . . . . . . . . . . . Hover . | . . . . . . . . . . . . . . . . . . . Flight 10 | . . . . . . 3 . . . . . 2 1 . . 2 . 2 Utility 30 | 1 3 . . . 4 2 3 1 1 . 2 6 . 1 . 1 4 1 Device 13 | . 1 . . . 1 2 2 1 . . 2 2 . . . 1 1 . Storage 5 | 1 2 . . . 1 . . . . . . . . . . . 1 . Processor 7 | . . . . . 1 . 1 . . . . 3 . . . . 1 1 Hackware 1 | . . . . . . . . . . . . 1 . . . . . . Protection 4 | . . . . . 1 . . . 1 . . . . 1 . . 1 . Artifact . | . . . . . . . . . . . . . . . . . . . Weapon 24 | 2 . 1 2 . 3 2 2 1 1 . 1 3 . . . 1 2 3 Energy Gun 12 | 2 . 1 1 . 2 1 1 . 1 . . . . . . . 1 2 Energy Cannon 5 | . . . . . . . 1 1 . . 1 . . . . . 1 1 Ballistic Gun 2 | . . . . . 1 . . . . . . . . . . 1 . . Ballistic Cannon . | . . . . . . . . . . . . . . . . . . . Launcher 1 | . . . . . . 1 . . . . . . . . . . . . Special Weapon 2 | . . . 1 . . . . . . . . 1 . . . . . . Impact Weapon . | . . . . . . . . . . . . . . . . . . . Slashing Weapon 2 | . . . . . . . . . . . . 2 . . . . . . Piercing Weapon . | . . . . . . . . . . . . . . . . . . . Special Melee Weapon . | . . . . . . . . . . . . . . . . . . . Unidentified Prototypes 4 | . . . . . 1 1 1 . . . . . . . . . . 1 Parts Lost 63 | . 2 1 . . 10 6 9 . 1 1 . 7 . . . 1 2 23 Power 8 | . . . . . 1 1 2 . . . . 1 . . . 1 . 2 Propulsion 24 | . 2 . . . 5 2 3 . . 1 . 3 . . . . . 8 Utility 18 | . . . . . 1 2 2 . . . . 3 . . . . 2 8 Weapon 13 | . . 1 . . 3 1 2 . 1 . . . . . . . . 5 Highest Loss Streak 10 | . 1 1 . . 5 3 4 . 1 1 . 4 . . . 1 1 10 To Critical Strikes 1 | . . . . . 1 . . . . . . . . . . . . . Average Backups 10 | . 5 6 8 9 9 13 13 14 14 13 14 7 4 3 4 4 5 8 Power 1 | . 1 1 2 2 2 2 . 1 1 1 1 . . . 1 . . . Propulsion 3 | . 1 1 1 1 2 6 5 6 6 5 4 1 . . . . . . Utility 3 | . 1 3 3 4 1 3 4 3 3 3 4 2 1 1 1 1 2 5 Weapon 2 | . 1 1 2 2 3 2 3 4 4 4 3 1 1 1 1 . 1 2 Tool/Special . | . . . . . . . . . . . . . . . . . . . Unused Backups 13 | . . . . . 3 . 2 . . . . 3 . . . 1 . 4 Power 2 | . . . . . 1 . . . . . . . . . . 1 . . Propulsion 1 | . . . . . . . 1 . . . . . . . . . . . Utility 6 | . . . . . . . . . . . . 2 . . . . . 4 Weapon 4 | . . . . . 2 . 1 . . . . 1 . . . . . . Tool/Special . | . . . . . . . . . . . . . . . . . . . Average Slot Usage (%) 90 | . 93 100 100 100 82 95 95 90 96 99 95 91 70 81 82 80 80 58 Engine 5 | . 14 14 14 14 6 9 2 . . . . . 2 5 1 3 5 1 Core 2 | . . . . . . . 6 7 7 7 6 4 . . 3 1 . . Treads 20 | . 27 28 28 28 18 25 24 23 23 22 28 7 . . . . . . Flight 4 | . . . . . . . . . . . . 22 20 23 23 20 21 10 Device 10 | . 7 14 14 14 5 8 15 13 15 15 13 10 5 5 5 5 5 2 Storage 13 | . 14 14 14 14 17 18 18 15 15 15 13 7 5 5 5 5 7 6 Processor 9 | . . . . . 8 9 9 15 15 15 13 14 17 17 17 17 13 11 Hackware 1 | . . . . . . . . . . . . 4 5 5 5 5 5 4 Protection 3 | . . . . . 8 5 . . 3 7 6 4 . 4 5 5 5 2 Energy Gun 12 | . 28 28 28 28 13 17 9 7 6 7 6 1 . . . . 2 3 Energy Cannon 2 | . . . . . . . 8 7 7 7 6 1 . . . . . 1 Slashing Weapon 1 | . . . . . . . . . . . . 5 11 11 11 11 10 5 Peak Build Rating 101 | 6 9 10 18 11 39 43 40 42 44 45 61 61 64 67 69 87 97 101 Average Rating 38 | 4 7 9 10 10 28 38 37 41 42 44 53 55 57 66 68 74 93 59 On Entrance 41 | . 6 9 10 11 11 39 40 38 42 44 45 61 48 64 67 69 87 97 Avg Prop Armor Cover (%) 3 | . . . . . . . . . . . . 6 . . . . . 3 Naked Turns . | . . . . . . . . . . . . . . . . . . . Heaviest Build 56 | 11 29 29 30 30 41 41 44 43 45 45 53 56 20 22 22 30 48 46 Greatest Support 120 | 40 40 40 40 40 62 64 64 62 62 62 120 120 28 28 28 39 50 50 Greatest Overweight (x) 8 | . . . . . 8 1 1 . . . . 1 . . . . . 6 Average Overweight (x) . | . . . . . . . . . . . . . . . . . . . Largest Inventory Capacity 15 | 8 15 15 15 15 15 15 15 15 15 15 15 15 5 5 5 5 10 10 Average Capacity 13 | 7 11 15 15 15 15 15 15 15 15 15 15 7 5 5 5 5 7 9 Most Carried 15 | 2 8 8 11 9 15 15 15 15 15 14 15 15 5 4 5 5 9 10 Average Carried 10 | . 5 6 8 9 9 13 13 14 14 13 14 7 3 3 4 4 5 8 Final Capacity 15 | 8 15 15 15 15 15 15 15 15 15 15 15 5 5 5 5 5 10 5 Final Carried 15 | 2 6 8 9 9 15 14 14 15 14 14 15 5 3 4 5 4 9 5 Class Distribution -------------------- 45% | Mutant 17% | Scavenger-Mutant 12% | Skirmisher 10% | Scavenger-Skirmisher 5% | Scavenger-Sprinter 4% | Sprinter Dominant Class ---------------- Mutant | -10/Materials Mutant | -10/Mines Mutant | -10/Exiles Mutant | -9/Mines Scavenger-Mutant | -8/Materials Mutant | -8/Garrison Scavenger-Skirmisher | -8/Materials Skirmisher | -7/Factory Mutant | -7/Lower Caves Mutant | -7/Lower Caves Skirmisher | -6/Factory Sprinter | -6/Extension Sprinter | -5/Factory Scavenger-Scout | -5/Waste Scout | -5/Factory Scavenger-Gladiator | -5/DSF Scavenger-Sprinter | -4/Factory Scavenger-Mutant | -4/Garrison Resources | -11 -10 -10 -10 -9 -8 -8 -8 -7 -7 -7 -6 -6 -5 -5 -5 -5 -4 -4 ----------- Run | Yrd Mat Min Exi Min Mat Gar Mat Fac Low Low Fac Ext Fac Was Fac DSF Fac Gar Matter Collected 1895 | 258 109 20 . 85 169 238 100 . 35 10 115 306 . 40 . 45 127 238 Remotely . | . . . . . . . . . . . . . . . . . . . Salvage Created 6181 | 115 496 156 . 114 779 545 1167 53 147 42 662 1012 . . . 47 424 422 Parts 288 | 5 32 7 . 3 53 28 62 4 7 4 20 35 . . . 1 19 8 Haulers Intercepted 8 | . 1 . . . 1 . 2 1 . . 1 1 . . . . 1 . Recyclers Shooed 3 | . 2 . . . . . 1 . . . . . . . . . . . Parts Field Recycled . | . . . . . . . . . . . . . . . . . . . Retrieved Matter . | . . . . . . . . . . . . . . . . . . . Parts Self-Destructed 10 | . . . . . . . . . 7 3 . . . . . . . . Prevented . | . . . . . . . . . . . . . . . . . . . Parts Restored . | . . . . . . . . . . . . . . . . . . . Kills | -11 -10 -10 -10 -9 -8 -8 -8 -7 -7 -7 -6 -6 -5 -5 -5 -5 -4 -4 ------- Run | Yrd Mat Min Exi Min Mat Gar Mat Fac Low Low Fac Ext Fac Was Fac DSF Fac Gar Combat Hostiles Destroyed 108 | . 9 5 . 2 22 20 22 . 3 1 8 5 . . . 1 3 7 Melee 10 | . . . . . . . . . . . . 3 . . . 1 3 3 Guns 74 | . 9 3 . 1 22 20 13 . . 1 3 1 . . . . . 1 Cannons 18 | . . . . . . . 8 . 3 . 4 1 . . . . . 2 AOE 3 | . . 2 . . . . 1 . . . . . . . . . . . Classes Destroyed 12 | 2 5 . . 1 2 . 1 . . 1 . . . . . . . . Worker 5 | 2 1 1 . 1 . . . . . . . . . . . . . . Builder 5 | . . . . . . . 2 . . . 1 2 . . . . . . Hauler 8 | . 1 . . . 1 . 2 1 . . 1 1 . . . . 1 . Recycler 8 | 1 1 . . . 1 . . . . . . 4 . . . . 1 . Operator 1 | . 1 . . . . . . . . . . . . . . . . . Watcher 4 | . 2 . . . . . . . . . 1 . . . . . 1 . Swarmer 28 | . 2 3 . . 10 7 1 . 3 . . . . . . . . 2 Grunt 48 | . 7 2 . 1 5 10 11 . . . 4 2 . . . 1 . 5 Duelist 2 | . . . . 1 . 1 . . . . . . . . . . . . Sentry 20 | . . . . . 6 1 8 . . . 2 2 . . . . 1 . Hunter 5 | . . . . . 1 1 2 . . . . 1 . . . . . . Programmer 5 | . . . . . . . . . . 1 2 . . . . . 2 . Packrat 1 | . . . . . . . . . 1 . . . . . . . . . Best Kill Streak 7 | 2 3 4 . 2 6 7 5 1 3 1 2 3 . . . 1 1 3 Combat Bots Only 7 | . 2 4 . 2 6 7 4 . 3 1 2 2 . . . 1 1 3 Max Kills in Single Turn 2 | 1 2 1 . 1 1 2 2 1 1 1 1 1 . . . 1 1 1 Gunslinging 1 | . . . . . . 1 . . . . . . . . . . . . Exploded 1 | . . 1 . . . . 1 . . . . . . . . . . . Melee 1 | . . . . . . . . . . . . 1 . . . 1 1 1 Uniques/NPCs Destroyed . | . . . . . . . . . . . . . . . . . . . Combat | -11 -10 -10 -10 -9 -8 -8 -8 -7 -7 -7 -6 -6 -5 -5 -5 -5 -4 -4 -------- Run | Yrd Mat Min Exi Min Mat Gar Mat Fac Low Low Fac Ext Fac Was Fac DSF Fac Gar Hostile Shots Fired 1009 | . 54 25 . 19 149 69 112 . 6 4 134 148 . . . 1 38 250 Missed 315 | . 13 8 . 6 43 20 30 . 2 . 48 48 . . . . 17 80 Hits 694 | . 41 17 . 13 106 49 82 . 4 4 86 100 . . . 1 21 170 Melee 7 | . . . . 5 . 2 . . . . . . . . . . . . Projectile 687 | . 41 17 . 8 106 47 82 . 4 4 86 100 . . . 1 21 170 AOE 1 | . . . . . . . . . . . . . . . . 1 . . Critical Strikes 30 | . 1 1 . . 2 5 3 . . . 4 3 . . . 1 1 9 Actively Blocked 1 | . . . . . . . . . . . . . . . . . 1 . Part Disruptions 1 | . . . . . . . . . . . . . . . . . 1 . Damage Taken 9499 | . 572 178 . 257 1363 724 1273 . 52 62 728 719 . . . 97 460 3014 Core 2025 | . 58 32 . 22 263 70 179 . 15 . 72 141 . . . 10 62 1101 Absorbed by Shields 824 | . . . . . . . . . . . 259 565 . . . . . . Redirected to Shielding 259 | . . . . . 34 18 . . . . 23 65 . . . . 119 . Regen/Repaired (Parts) 61 | . . . . . . . . . . . . . . . . . 61 . Core Remaining (%) 71 | 100 . . . 55 . . 6 . . 97 . 74 . . . 99 . . Volleys Fired 401 | 3 46 19 . 11 67 49 76 1 5 3 40 15 . . . . 19 47 Largest 3 | 2 2 2 . 2 2 2 2 2 2 2 2 2 . . . . 1 3 Hottest 186 | 90 90 90 . 105 150 150 150 120 131 131 141 141 . . . . 90 186 Shots Fired 713 | 6 94 37 . 23 120 95 139 2 7 6 80 24 . . . . 18 62 Gun 551 | 6 94 37 . 23 120 93 77 1 2 3 40 9 . . . . 13 33 Cannon 154 | . . . . . . . 62 1 5 3 40 9 . . . . 5 29 Launcher 4 | . . . . . . 2 . . . . . 2 . . . . . . Special 4 | . . . . . . . . . . . . 4 . . . . . . Kinetic 39 | . . . . . 23 . . . . . . . . . . . 8 8 Thermal 608 | 6 94 25 . 23 94 93 108 1 7 6 80 18 . . . . 5 48 Explosive 4 | . . . . . . 2 . . . . . 2 . . . . . . Electromagnetic 58 | . . 12 . . 3 . 31 1 . . . . . . . . 5 6 Robot Hit Streak 14 | 5 8 6 . 10 12 13 14 2 7 5 14 13 . . . . 2 5 Robot Miss Streak 11 | . 4 3 . 2 11 8 7 1 2 . 3 1 . . . . 8 5 Penetration Max . | . . . . . . . . . . . . . . . . . . . Secondary Targets 6 | . 1 . . 1 . 2 2 . . . . . . . . . . . Max Gunslinging Chain 1 | . 1 . . 1 . 1 1 . . . . . . . . . . . Shots Hit Robots 563 | 5 55 22 . 15 80 70 106 2 5 5 58 53 . . . 4 32 51 Core Hits 371 | 4 30 8 . 5 74 91 86 1 4 3 25 16 . . . 1 10 13 Critical Kills 1 | . . . . . . . . . 1 . . . . . . . . . Critical Parts Destroyed 3 | . . . . . . . . . . . . . . . . . 2 1 Critical Strikes 33 | . 5 1 . 1 . . . . 1 . 5 6 . . . 1 5 8 Burn 18 | . 5 1 . 1 . . . . . . 5 1 . . . . . 5 Meltdown 1 | . . . . . . . . . 1 . . . . . . . . . Destroy 3 | . . . . . . . . . . . . . . . . . 2 1 Sever 11 | . . . . . . . . . . . . 5 . . . 1 3 2 Melee Attacks 96 | . . . . . . . . . . . . 40 . . . 4 30 22 Impact . | . . . . . . . . . . . . . . . . . . . Slashing 96 | . . . . . . . . . . . . 40 . . . 4 30 22 Piercing . | . . . . . . . . . . . . . . . . . . . Sneak Attacks 7 | . . . . . . . . . . . . 6 . . . . 1 . Combat Hostiles . | . . . . . . . . . . . . . . . . . . . Follow-up Attacks 10 | . . . . . . . . . . . . 1 . . . 2 6 1 Damage Inflicted 13093 | 71 719 417 . 208 1201 1333 2530 37 114 105 1303 1992 . . . 154 1296 1613 Guns 6193 | 71 677 253 . 208 1201 1333 1455 12 14 49 459 130 . . . . 28 303 Cannons 2819 | . . . . . . . 891 25 100 56 844 216 . . . . . 687 Explosions 493 | . 42 164 . . . . 184 . . . . 103 . . . . . . Melee 3571 | . . . . . . . . . . . . 1543 . . . 154 1268 606 Ramming 17 | . . . . . . . . . . . . . . . . . . 17 Kinetic 183 | . . . . . 134 . . . . . . . . . . . 24 25 Thermal 8474 | 71 677 310 . 208 1057 1333 1988 25 114 105 1303 346 . . . . . 937 Explosive 145 | . 42 . . . . . . . . . . 103 . . . . . . Electromagnetic 703 | . . 107 . . 10 . 542 12 . . . . . . . . 4 28 Impact . | . . . . . . . . . . . . . . . . . . . Slashing 3571 | . . . . . . . . . . . . 1543 . . . 154 1268 606 Piercing . | . . . . . . . . . . . . . . . . . . . Highest Corruption 4 | . 3 3 3 3 . . . . . . 3 3 . . . . 4 4 Average Corruption 3 | . 2 3 3 3 . . . . . . 2 3 . . . . 3 4 Corruption Purged . | . . . . . . . . . . . . . . . . . . . Corruption Blocked . | . . . . . . . . . . . . . . . . . . . Effects 78 | . 17 5 7 13 . . . . . . 11 11 . . . . 4 10 Message Errors 15 | . 4 2 1 2 . . . . . . 1 5 . . . . . . Matter Fused 21 | . 2 . 3 5 . . . . . . 5 1 . . . . 1 4 Heat Flow Errors 10 | . . . 2 2 . . . . . . 2 1 . . . . 2 1 Energy Discharges 9 | . 3 1 . 2 . . . . . . . 2 . . . . . 1 Parts Rejected 3 | . 1 . . 1 . . . . . . . . . . . . . 1 Data Loss (minor) 9 | . 2 2 1 . . . . . . . 2 1 . . . . . 1 Data Loss (major) 7 | . 3 . . . . . . . . . 1 1 . . . . . 2 Misfires 3 | . 2 . . 1 . . . . . . . . . . . . . . Weapon Failures 1 | . . . . . . . . . . . . . . . . . 1 . Overload Shots . | . . . . . . . . . . . . . . . . . . . Overflow Damage 341 | . . . . . . . 54 . . . 13 157 . . . . 62 55 Projectiles 25 | . . . . . . . 12 . . . 13 . . . . . . . Explosions 45 | . . . . . . . 42 . . . . 3 . . . . . . Melee 271 | . . . . . . . . . . . . 154 . . . . 62 55 Knockbacks . | . . . . . . . . . . . . . . . . . . . Impact . | . . . . . . . . . . . . . . . . . . . Kinetic . | . . . . . . . . . . . . . . . . . . . Secondary . | . . . . . . . . . . . . . . . . . . . Self-Inflicted Damage 386 | . 104 8 . . 179 21 32 . . . . 42 . . . . . . Shots 8 | . 2 1 . . 2 1 1 . . . . 1 . . . . . . Rammed 2 | . . . . . . . . . . . . . . . . . . 2 Targets Rammed 9 | . . . . . . . . . . . . . . . . . . 9 Kicked 7 | . . . . . . . . . . . . . . . . . . 7 Crushed . | . . . . . . . . . . . . . . . . . . . Highest Temperature 757 | 60 324 19 209 96 207 360 318 45 108 162 457 534 . . . . 239 757 Average Temperature 114 | 28 127 8 99 23 49 113 90 28 50 85 127 157 . . . . 97 255 Received Heat Transfer 2681 | . 261 54 . 48 351 360 540 . . . 179 339 . . . . 45 504 Effects 28 | . 2 . . . . 1 1 . . . 3 5 . . . . . 16 Shutdowns 2 | . . . . . . . . . . . 1 1 . . . . . . Energy Bleed 4 | . . . . . . . . . . . 2 . . . . . . 2 Interference 7 | . 2 . . . . . 1 . . . . 1 . . . . . 3 Matter Decay 5 | . . . . . . 1 . . . . . 1 . . . . . 3 Short Circuit 3 | . . . . . . . . . . . . 1 . . . . . 2 Damage (minor) 4 | . . . . . . . . . . . . 1 . . . . . 3 Damage (major) 3 | . . . . . . . . . . . . . . . . . . 3 Siege Activations . | . . . . . . . . . . . . . . . . . . . Martial Activations . | . . . . . . . . . . . . . . . . . . . Shielding Activations . | . . . . . . . . . . . . . . . . . . . Robots Disrupted . | . . . . . . . . . . . . . . . . . . . Combat Hostiles . | . . . . . . . . . . . . . . . . . . . Robots Corrupted . | . . . . . . . . . . . . . . . . . . . Combat Hostiles . | . . . . . . . . . . . . . . . . . . . Parts Fried 4 | . . . . . . . 4 . . . . . . . . . . . Impact Corruptions . | . . . . . . . . . . . . . . . . . . . Robots Melted 4 | . . . . 1 . . . . 1 . 1 . . . . . . 1 Combat Hostiles 3 | . . . . 1 . . . . . . 1 . . . . . . 1 Parts Melted 26 | . 3 . . . 1 . 1 . 1 . 13 1 . . . . . 6 Heat Transferred 13384 | 186 2095 635 . 533 1227 1050 2274 37 185 185 2590 666 . . . . . 1721 Parts Sabotaged . | . . . . . . . . . . . . . . . . . . . Parts Stolen . | . . . . . . . . . . . . . . . . . . . Parts Stripped . | . . . . . . . . . . . . . . . . . . . Power Chain Reactions 3 | . . 2 . . . . 1 . . . . . . . . . . . Alert | -11 -10 -10 -10 -9 -8 -8 -8 -7 -7 -7 -6 -6 -5 -5 -5 -5 -4 -4 ------- Run | Yrd Mat Min Exi Min Mat Gar Mat Fac Low Low Fac Ext Fac Was Fac DSF Fac Gar Maximum Alert Level 3 | . . . . . 1 2 1 . . . . 1 . . . 1 3 2 Low Security (%) 69 | 100 100 100 . 100 95 20 51 100 . . 100 83 100 100 100 46 4 . Level 1 14 | . . . . . 4 21 48 . . . . 16 . . . 53 19 . Level 2 13 | . . . . . . 57 . . . . . . . . . . 23 100 Level 3 2 | . . . . . . . . . . . . . . . . . 52 . Level 4 . | . . . . . . . . . . . . . . . . . . . Level 5 . | . . . . . . . . . . . . . . . . . . . High Security . | . . . . . . . . . . . . . . . . . . . Max Security . | . . . . . . . . . . . . . . . . . . . Sterilizations 1 | . . . . . . . . . . . . . . . . 1 . . Peak Influence 841 | 10 160 112 . 40 211 581 310 115 . . 70 296 135 43 . 374 841 563 Initial 513 | . 6 10 . . . 133 282 115 . . . 24 135 43 . . 196 513 Average 166 | . 62 67 . 4 72 410 184 92 . . 12 72 133 18 . 211 588 544 Influence Increases 5117 | 15 392 137 . 55 667 508 625 7 70 30 263 706 . . . 494 925 223 Destroy 0b10 Robot/C 2900 | . 180 100 . 40 440 400 440 . 60 20 160 360 . . . 180 380 140 Destroy 0b10 Robot/NC 200 | 15 30 5 . 5 10 . 20 5 . . 15 55 . . . 10 30 . Destroy Leader 598 | . 46 20 . 10 112 30 134 2 10 10 64 66 . . . 20 74 . Allied During Kill 679 | . . . . . . . . . . . . 88 . . . 210 381 . Successful Hack 70 | . 5 . . . 11 16 . . . . 5 21 . . . . 12 . Disable Machine 135 | . 30 . . . 60 . . . . . . 30 . . . 15 . . Anti-Garrison Action 100 | . . . . . . 50 . . . . . . . . . . . 50 Destroy Structure 255 | . 26 12 . . 34 12 31 . . . 4 26 . . . 44 48 18 Partial Spotted 15 | . . . . . . . . . . . . 15 . . . . . . Lose Combat Pursuer 165 | . 75 . . . . . . . . . 15 45 . . . 15 . 15 Influence Decreases 4631 | 5 373 129 37 55 461 133 951 190 142 30 212 480 152 125 . 120 566 470 Entered New Map 1248 | . 4 19 37 . . 73 299 140 27 . . 27 142 82 . . 178 220 Time Decay 2360 | 5 349 100 . 55 381 . 562 50 115 30 198 264 10 43 . . 198 . Lost Part 590 | . 20 10 . . 80 60 90 . . . . 70 . . . 10 20 230 Lost Ally 433 | . . . . . . . . . . . 14 119 . . . 110 170 20 Squads Dispatched 22 | . 1 . . . 2 . 4 . . . 6 4 . . . 2 3 . Investigation 4 | . . . . . 1 . . . . . . 3 . . . . . . Extermination 4 | . . . . . . . . . . . 2 . . . . . 2 . Reinforcement 9 | . 1 . . . . . 4 . . . . 1 . . . 2 1 . Assault . | . . . . . . . . . . . . . . . . . . . Garrison 5 | . . . . . 1 . . . . . 4 . . . . . . . Intercept . | . . . . . . . . . . . . . . . . . . . Searches Triggered . | . . . . . . . . . . . . . . . . . . . Construction Impeded 3 | . . . . . . . 2 . . . . 1 . . . . . . Haulers Reinforced 1 | . . . . . . . . . . . . . . . . . 1 . Active Scanning Responses . | . . . . . . . . . . . . . . . . . . . Cargo Convoy Interrupts 1 | . . . . . . . . . . . 1 . . . . . . . Stealth | -11 -10 -10 -10 -9 -8 -8 -8 -7 -7 -7 -6 -6 -5 -5 -5 -5 -4 -4 --------- Run | Yrd Mat Min Exi Min Mat Gar Mat Fac Low Low Fac Ext Fac Was Fac DSF Fac Gar Distress Signals 14 | . . . . . 4 . 6 . . . . 1 . . . . 3 . Communications Jammed . | . . . . . . . . . . . . . . . . . . . Distress Signals . | . . . . . . . . . . . . . . . . . . . Times Spotted 180 | . 21 3 . 2 33 18 36 . 3 1 10 23 . . . 6 13 11 Peak Tracking Total 8 | . 3 2 . 2 8 7 5 . 3 1 3 4 . . . 5 6 3 Tactical Retreats 9 | . 3 . . . . . . . . . 1 3 . . . 1 . 1 Traps | -11 -10 -10 -10 -9 -8 -8 -8 -7 -7 -7 -6 -6 -5 -5 -5 -5 -4 -4 ------- Run | Yrd Mat Min Exi Min Mat Gar Mat Fac Low Low Fac Ext Fac Was Fac DSF Fac Gar Traps Triggered 9 | . 3 . . . . 1 . . . . . . 1 . . 1 . 3 Indirectly . | . . . . . . . . . . . . . . . . . . . Trap Hack Attempts . | . . . . . . . . . . . . . . . . . . . Triggered . | . . . . . . . . . . . . . . . . . . . Disarmed . | . . . . . . . . . . . . . . . . . . . Reprogrammed . | . . . . . . . . . . . . . . . . . . . Reused . | . . . . . . . . . . . . . . . . . . . Traps Extracted . | . . . . . . . . . . . . . . . . . . . Installed . | . . . . . . . . . . . . . . . . . . . Triggered . | . . . . . . . . . . . . . . . . . . . Machines | -11 -10 -10 -10 -9 -8 -8 -8 -7 -7 -7 -6 -6 -5 -5 -5 -5 -4 -4 ---------- Run | Yrd Mat Min Exi Min Mat Gar Mat Fac Low Low Fac Ext Fac Was Fac DSF Fac Gar Machines Disabled 11 | . 2 . . . 4 1 . . . . . 2 . . . 1 . 1 Max in Single Turn 3 | . 2 . . . 3 1 . . . . . . . . . . . 1 Garrison Relay 2 | . . . . . . 1 . . . . . . . . . . . 1 Machines Repaired . | . . . . . . . . . . . . . . . . . . . Machines Dismantled . | . . . . . . . . . . . . . . . . . . . Machines Sabotaged . | . . . . . . . . . . . . . . . . . . . Overloaded Fab Kills . | . . . . . . . . . . . . . . . . . . . Hacking | -11 -10 -10 -10 -9 -8 -8 -8 -7 -7 -7 -6 -6 -5 -5 -5 -5 -4 -4 --------- Run | Yrd Mat Min Exi Min Mat Gar Mat Fac Low Low Fac Ext Fac Was Fac DSF Fac Gar Machines Accessed 31 | . 3 . 2 . 4 1 1 1 . . 2 11 . . 1 . 5 . Terminals 20 | . 3 . . . 1 1 1 . . . 1 11 . . 1 . 1 . Fabricators 3 | . . . . . . . . 1 . . 1 . . . . . 1 . Repair Stations . | . . . . . . . . . . . . . . . . . . . Recycling Units 1 | . . . . . 1 . . . . . . . . . . . . . Scanalyzers 3 | . . . . . 1 . . . . . . . . . . . 2 . Garrison Access 2 | . . . . . 1 . . . . . . . . . . . 1 . Total Hacks 54 | . 8 . 5 . 6 1 2 1 . . 5 19 . . 1 . 6 . Successful 30 | . 3 . 5 . 5 1 1 1 . . 3 7 . . 1 . 3 . Failed 24 | . 5 . . . 1 . 1 . . . 2 12 . . . . 3 . Catastrophic 4 | . . . . . . . . . . . . 4 . . . . . . Database Lockouts . | . . . . . . . . . . . . . . . . . . . Manual 1 | . . . 1 . . . . . . . . . . . . . . . Terminals 36 | . 8 . . . 1 1 2 . . . 3 19 . . 1 . 1 . Fabricators 4 | . . . . . . . . 1 . . 2 . . . . . 1 . Repair Stations . | . . . . . . . . . . . . . . . . . . . Recycling Units 1 | . . . . . 1 . . . . . . . . . . . . . Scanalyzers 6 | . . . . . 3 . . . . . . . . . . . 3 . Garrison Access 2 | . . . . . 1 . . . . . . . . . . . 1 . Terminal Hacks 20 | . 3 . 5 . 1 1 1 . . . 1 7 . . 1 . . . Record 4 | . . . 4 . . . . . . . . . . . . . . . Prototype ID Bank 3 | . 2 . . . 1 . . . . . . . . . . . . . Open Door 8 | . . . . . . . . . . . 1 7 . . . . . . Open DSF 1 | . . . . . . . . . . . . . . . 1 . . . Alert Level 2 | . 1 . . . . . 1 . . . . . . . . . . . Security Stations 1 | . . . . . . 1 . . . . . . . . . . . . Proto ID Catalog 1 | . . . 1 . . . . . . . . . . . . . . . Fabricator Hacks 4 | . . . . . . . . 1 . . 2 . . . . . 1 . Network Status 3 | . . . . . . . . 1 . . 1 . . . . . 1 . Build 1 | . . . . . . . . . . . 1 . . . . . . . Repair Station Hacks . | . . . . . . . . . . . . . . . . . . . Recycling Unit Hacks 1 | . . . . . 1 . . . . . . . . . . . . . Report Inventory 1 | . . . . . 1 . . . . . . . . . . . . . Scanalyzer 3 | . . . . . 2 . . . . . . . . . . . 1 . Insert Component 1 | . . . . . 1 . . . . . . . . . . . . . Analyze 1 | . . . . . 1 . . . . . . . . . . . . . Retrieve Study 1 | . . . . . . . . . . . . . . . . . 1 . Garrison Access Hacks 2 | . . . . . 1 . . . . . . . . . . . 1 . Unlock Access 2 | . . . . . 1 . . . . . . . . . . . 1 . Unauthorized Hacks . | . . . . . . . . . . . . . . . . . . . Terminals . | . . . . . . . . . . . . . . . . . . . Fabricators . | . . . . . . . . . . . . . . . . . . . Repair Stations . | . . . . . . . . . . . . . . . . . . . Recycling Units . | . . . . . . . . . . . . . . . . . . . Scanalyzers . | . . . . . . . . . . . . . . . . . . . Garrison Access . | . . . . . . . . . . . . . . . . . . . Data Cores Recovered 2 | . 1 . . . . . . . . . . . . . . . 1 . Used . | . . . . . . . . . . . . . . . . . . . Hacking Detections 19 | . 3 . . . 2 . 1 1 . . 1 7 . . . . 4 . Full Trace Events 5 | . 1 . . . 1 . . . . . . 3 . . . . . . Feedback Events . | . . . . . . . . . . . . . . . . . . . Feedback Blocked . | . . . . . . . . . . . . . . . . . . . Robot Schematics Acquired . | . . . . . . . . . . . . . . . . . . . Robots Built 2 | . . . . . . . . . . . 2 . . . . . . . Authchips . | . . . . . . . . . . . . . . . . . . . Time 81 | . . . . . . . . . . . 81 . . . . . . . Total Robot Build Rating 2 | . . . . . . . . . . . 2 . . . . . . . Part Schematics Acquired 1 | . . . . . 1 . . . . . . . . . . . . . Parts Built . | . . . . . . . . . . . . . . . . . . . Authchips . | . . . . . . . . . . . . . . . . . . . Time . | . . . . . . . . . . . . . . . . . . . Total Part Build Rating . | . . . . . . . . . . . . . . . . . . . Part Studies Acquired 1 | . . . . . . . . . . . . . . . . . 1 . Parts Repaired . | . . . . . . . . . . . . . . . . . . . Time . | . . . . . . . . . . . . . . . . . . . Parts Recycled . | . . . . . . . . . . . . . . . . . . . Recycled Matter . | . . . . . . . . . . . . . . . . . . . Retrieved Matter . | . . . . . . . . . . . . . . . . . . . Retrieved Components . | . . . . . . . . . . . . . . . . . . . Parts Scanalyzed 1 | . . . . . 1 . . . . . . . . . . . . . Part Schematics Acquired 1 | . . . . . 1 . . . . . . . . . . . . . Parts Damaged . | . . . . . . . . . . . . . . . . . . . Bothacking | -11 -10 -10 -10 -9 -8 -8 -8 -7 -7 -7 -6 -6 -5 -5 -5 -5 -4 -4 ------------ Run | Yrd Mat Min Exi Min Mat Gar Mat Fac Low Low Fac Ext Fac Was Fac DSF Fac Gar Used RIF Installer 1 | . . . . . . 1 . . . . . . . . . . . . Robots Hacked . | . . . . . . . . . . . . . . . . . . . Non-combat . | . . . . . . . . . . . . . . . . . . . Combat . | . . . . . . . . . . . . . . . . . . . Robot Hacks Applied . | . . . . . . . . . . . . . . . . . . . Relay Couplers Released 8 | . . . . . . 3 . . . . . . . . . . . 5 Machine Destruction 8 | . . . . . . 3 . . . . . . . . . . . 5 Attached 1 | . . . . . . . . . . . . 1 . . . . . . Fabnet Peak Effective % . | . . . . . . . . . . . . . . . . . . . Robots Rewired 4 | . . . . . . . . . . . 1 3 . . . . . . Allies Hacked 2 | . . . . . . . . . . . 1 . . . . . 1 . Hacks Repelled . | . . . . . . . . . . . . . . . . . . . Allies | -11 -10 -10 -10 -9 -8 -8 -8 -7 -7 -7 -6 -6 -5 -5 -5 -5 -4 -4 -------- Run | Yrd Mat Min Exi Min Mat Gar Mat Fac Low Low Fac Ext Fac Was Fac DSF Fac Gar Total Allies 35 | . . . . . . . . . . . 3 11 . 21 . . . . Largest Group 21 | . . . . . . . . . . . 2 9 1 21 21 20 12 1 Highest-Rated Group 778 | . . . . . . . . . . . 16 215 152 778 778 751 509 38 Highest-Rated Ally 159 | . . . . . . . . . . . 12 159 152 50 50 50 50 38 Total Orders . | . . . . . . . . . . . . . . . . . . . Ally Attacks 256 | . . . . . . . . . . . . 82 . . . 58 114 2 Total Damage 7286 | . . . . . . . . . . . . 2448 . . . 1637 3155 46 Kills 45 | . . . . . . . . . . . . 18 . . . 8 19 . Allies Corrupted 1 | . . . . . . . . . . . 1 . . . . . . . Allies Melted . | . . . . . . . . . . . . . . . . . . . Intel | -11 -10 -10 -10 -9 -8 -8 -8 -7 -7 -7 -6 -6 -5 -5 -5 -5 -4 -4 ------- Run | Yrd Mat Min Exi Min Mat Gar Mat Fac Low Low Fac Ext Fac Was Fac DSF Fac Gar Active Infowar (turns) 6410 | . . . . . 1215 884 1676 110 595 169 1174 308 23 123 65 . 68 . Optics 6099 | . . . . . 1215 884 1676 110 595 169 1174 276 . . . . . . Sensors 3185 | . . . . . . . 1408 110 595 169 835 . . . . . 68 . IFF 243 | . . . . . . . . . . . . 32 23 123 65 . . . Robot Analysis Total . | . . . . . . . . . . . . . . . . . . . Derelict Logs Recovered 3 | . . . . 1 . . . . 1 1 . . . . . . . . Drone Launches . | . . . . . . . . . . . . . . . . . . . Drone Recoveries . | . . . . . . . . . . . . . . . . . . . Exploration | -11 -10 -10 -10 -9 -8 -8 -8 -7 -7 -7 -6 -6 -5 -5 -5 -5 -4 -4 ------------- Run | Yrd Mat Min Exi Min Mat Gar Mat Fac Low Low Fac Ext Fac Was Fac DSF Fac Gar Turns Passed 10458 | 113 1201 217 371 546 1217 884 1676 110 595 169 1174 783 23 123 69 141 407 639 Spaces Moved 6672 | 62 642 96 228 315 527 453 699 66 368 101 570 1114 63 85 32 164 694 393 Core 33 | 5 . . . . 25 . . . . . . . . . . . . 3 Treads 4171 | 57 642 96 228 315 502 453 699 66 368 101 570 74 . . . . . . Legs 146 | . . . . . . . . . . . . . . . . . . 146 Wheels . | . . . . . . . . . . . . . . . . . . . Hover . | . . . . . . . . . . . . . . . . . . . Flight 2322 | . . . . . . . . . . . . 1040 63 85 32 164 694 244 Fastest Speed 24 | 50 160 160 160 160 152 145 150 158 158 158 158 24 27 27 27 27 29 29 Average Speed 115 | 151 160 160 160 160 184 153 167 158 158 158 158 34 27 27 27 29 29 77 Slowest Speed 455 | 160 160 160 160 160 450 240 245 158 158 158 159 162 29 27 27 34 29 455 Overloaded Moves . | . . . . . . . . . . . . . . . . . . . Propulsion Burnouts . | . . . . . . . . . . . . . . . . . . . Robots Hopped 4 | . . . . . . . . . . . . 4 . . . . . . Potential Cave-ins 2 | . . . . . . . . . . . . 2 . . . . . . Cave-ins Triggered . | . . . . . . . . . . . . . . . . . . . Exploration Rate (%) 39 | 4 94 24 60 65 51 40 58 2 62 14 14 56 2 65 1 94 15 20 Regions Visited 18 Branch Regions 6 Pre-discovered Areas 2 | . . . 1 . . . . . 1 . . . . . . . . . Known Exits Taken 4 | . . . . . 1 . . . . . . 1 . . 1 . 1 . Unknown Exits Taken 10 | 1 1 1 1 1 . . 1 1 1 1 1 . . . . . . . Scrap Searched 6 | . . 1 . 1 . . . . 3 1 . . . . . . . . Spaces Dug 2 | . . . . . . . . . . . . . . . . . . 2 Terrain Destroyed 168 | . 24 13 . . 49 17 31 . . . 3 17 . . . . 4 10 Melee 2 | . . . . . . . . . . . . . . . . . . 2 Projectile 33 | . . . . . . . 16 . . . 3 2 . . . . 4 8 AOE 133 | . 24 13 . . 49 17 15 . . . . 15 . . . . . . Terrain Rammed . | . . . . . . . . . . . . . . . . . . . Walls Destroyed . | . . . . . . . . . . . . . . . . . . . Machines Disabled . | . . . . . . . . . . . . . . . . . . . Actions | -11 -10 -10 -10 -9 -8 -8 -8 -7 -7 -7 -6 -6 -5 -5 -5 -5 -4 -4 --------- Run | Yrd Mat Min Exi Min Mat Gar Mat Fac Low Low Fac Ext Fac Was Fac DSF Fac Gar Total 8565 | 73 723 122 236 335 657 546 1064 69 374 105 762 1431 69 183 91 254 842 629 Wait 1093 | . 12 4 . 9 17 20 268 . . . 121 233 . 97 58 59 90 105 Move 6645 | 61 641 95 227 314 526 451 698 65 367 100 569 1105 63 84 31 163 693 392 Hop 4 | . . . . . . . . . . . . 4 . . . . . . Pick Up 55 | 3 8 2 2 . 15 4 6 . . 1 4 1 . 1 . 2 4 2 Fast Attach 70 | 5 4 . . 1 11 5 5 2 1 . 1 12 2 1 1 4 5 10 Attach 45 | 1 2 1 3 . 6 8 5 . 1 1 2 6 1 . . 1 3 4 Detach 28 | . 1 . 3 . 3 3 . 1 . . . 6 1 . 1 1 4 4 Swap 20 | . 4 1 . . 2 2 3 . . . 5 2 . . . . . 1 Drop 49 | . 5 . 1 . 8 4 3 . . . 7 10 2 . . 6 . 3 Fire 401 | 3 46 19 . 11 67 49 76 1 5 3 40 15 . . . . 19 47 Melee 84 | . . . . . . . . . . . . 37 . . . 2 24 21 Ram 2 | . . . . . . . . . . . . . . . . . . 2 Kick 7 | . . . . . . . . . . . . . . . . . . 7 Crush . | . . . . . . . . . . . . . . . . . . . Escape Stasis 47 | . . . . . . . . . . . . . . . . 16 . 31 Rewire 15 | . . . . . 2 . . . . . 13 . . . . . . . Trap . | . . . . . . . . . . . . . . . . . . . Miscellaneous . | . . . . . . . . . . . . . . . . . . . Route ------- -11/Scrapyard -10/Materials (discovered 3 exits: [*Mat x2] / [*Min]) -10/Mines (discovered 2 exits: [*Mat] / *Exi) -10/Exiles -9/Mines -8/Materials -8/Garrison -8/Materials -7/Factory -7/Lower Caves -7/Lower Caves -6/Factory (discovered 2 exits: Fac / *Ext) -6/Extension -5/Factory -5/Waste -5/Factory -5/DSF -4/Factory -4/Garrison History --------- Turn | Location | Event 9 | -11/Scrapyard | Discovered new exit (range 15) 114 | -11/Scrapyard | Entered Materials 218 | -10/Materials | Discovered new exit (range 11) 318 | -10/Materials | Build established: Mutant 442 | -10/Materials | Discovered new exit (range 5) 1273 | -10/Materials | Discovered new exit (range 11) 1315 | -10/Materials | Entered Mines 1362 | -10/Mines | Met a Derelict bent on vengeance 1392 | -10/Mines | Discovered new exit (range 5) 1526 | -10/Mines | Deemed a non-threat by the Exiles lab entrance 1526 | -10/Mines | Discovered new exit (range 5) 1532 | -10/Mines | Entered Exiles 1569 | -10/Exiles | Met 8R-AWN 1601 | -10/Exiles | Met EX-HEX 1648 | -10/Exiles | Met EX-BIN 1665 | -10/Exiles | Aligned with FarCom system 1667 | -10/Exiles | Given EX-Vault access code 1705 | -10/Exiles | Opened EX-Vault 1721 | -10/Exiles | Found Field Lobotomy Kit 1734 | -10/Exiles | Found Superbattery 1767 | -10/Exiles | Warned to stay clear of 0b10 Research branches 1823 | -10/Exiles | Met EX-DEC 1832 | -10/Exiles | Learned location of Zion (-7) 1883 | -10/Exiles | Discovered new exit (range 14) 1903 | -10/Exiles | Left Exiles lab with Superbattery 1903 | -10/Exiles | Entered Mines 1907 | -9/Mines | Learned Materials stockpile data 2433 | -9/Mines | Discovered new exit (range 11) 2449 | -9/Mines | Entered Materials 2449 | -8/Materials | Evolved 4 slots: Propulsion x1, Utility x3 2667 | -8/Materials | Lost 3 parts (1u2w) 2761 | -8/Materials | Lost 5 parts (1p3n1w) 3341 | -8/Materials | Build established: Scavenger-Mutant 3635 | -8/Materials | Garrison activated, responded to threat 3664 | -8/Materials | Identified exit to Garrison 3666 | -8/Materials | Entered Garrison 3702 | -8/Garrison | Build established: Mutant 3724 | -8/Garrison | Triggered checkpoint 3896 | -8/Garrison | Destroyed 7 combat bots 3914 | -8/Garrison | Triggered checkpoint 3945 | -8/Garrison | Lost 3 parts (1p1u1w) 4002 | -8/Garrison | Triggered checkpoint 4039 | -8/Garrison | Garrison Relay disabled 4095 | -8/Garrison | Discovered new exit (range 17) 4142 | -8/Garrison | Learned Materials security intel 4170 | -8/Garrison | Build established: Scavenger-Mutant 4222 | -8/Garrison | Triggered checkpoint 4224 | -8/Garrison | Core integrity fell below 50% 4336 | -8/Garrison | Installed Relay Interface Framework 4535 | -8/Garrison | Build established: Mutant 4550 | -8/Garrison | Entered Materials 4724 | -8/Materials | Lost 4 parts (1p2n1w) 5003 | -8/Materials | Core integrity fell below 20% 5307 | -8/Materials | Build established: Scavenger-Skirmisher 6149 | -8/Materials | Build established: Skirmisher 6218 | -8/Materials | Discovered new exit (range 5) 6226 | -8/Materials | Entered Factory 6226 | -7/Factory | Evolved 2 slots: Utility x2 6303 | -7/Factory | Discovered new exit (range 17) 6336 | -7/Factory | Entered Lower Caves 6383 | -7/Lower Caves | Encountered a Warlord checkpoint 6562 | -7/Lower Caves | Learned location of Extension (-6) 6641 | -7/Lower Caves | Build established: Mutant 6915 | -7/Lower Caves | Discovered new exit (range 11) 6931 | -7/Lower Caves | Entered another Lower Caves area 7058 | -7/Lower Caves | Learned 4 Factory zone layouts 7077 | -7/Lower Caves | Discovered new exit (range 16) 7100 | -7/Lower Caves | Entered Factory 7100 | -6/Factory | Evolved 2 slots: Propulsion x2 7101 | -6/Factory | Identified exit to Factory 7197 | -6/Factory | Garrison activated, responded to threat 7320 | -6/Factory | Fabricated R-06 Scavenger (x2) 7403 | -6/Factory | Build established: Skirmisher 7509 | -6/Factory | Garrison activated, responded to threat 7968 | -6/Factory | Cargo convoy interrupted 8243 | -6/Factory | Build established: Scavenger-Mutant 8245 | -6/Factory | Discovered new exit (range 10) 8274 | -6/Factory | Entered Extension 8425 | -6/Extension | Rescued a captive Derelict 8475 | -6/Extension | Rescued a captive Derelict 8476 | -6/Extension | Rescued a captive Derelict 8479 | -6/Extension | Rescued a captive Derelict 8565 | -6/Extension | Rescued a captive Derelict 8565 | -6/Extension | Rescued a captive Derelict 8572 | -6/Extension | Rescued a captive Derelict 8628 | -6/Extension | Spotted B-75 Beast 8696 | -6/Extension | Rescued A7 8839 | -6/Extension | Spotted B-75 Beast 8880 | -6/Extension | Build established: Sprinter 8896 | -6/Extension | Allies destroyed B-75 Beast 8906 | -6/Extension | Discovered exit to Factory (range 3) 8958 | -6/Extension | Lost 4 parts (1p1n2u) 9024 | -6/Extension | Disrupted transfer network 9057 | -6/Extension | Entered Factory 9057 | -5/Factory | Accompanied by 1 ally (A7) 9057 | -5/Factory | Evolved 2 slots: Propulsion x1, Weapon x1 9080 | -5/Factory | Sucked down chute 9080 | -5/Factory | Entered Waste 9081 | -5/Waste | Met a frightened Derelict 9081 | -5/Waste | Joined by Warlord forces that had cleared the area 9101 | -5/Waste | Discovered new exit (range 16) 9105 | -5/Waste | Identified exit to Factory 9203 | -5/Waste | Entered Factory 9203 | -5/Factory | Accompanied by 21 allies 9218 | -5/Factory | Identified exit to DSF 9272 | -5/Factory | Entered DSF 9272 | -5/DSF | Accompanied by 20 allies 9301 | -5/DSF | Additional patrols routed to DSF 9366 | -5/DSF | Lost 8 allies 9377 | -5/DSF | Sterilization system engaged 9378 | -5/DSF | Discovered new exit (range 11) 9383 | -5/DSF | Identified exit to Factory 9397 | -5/DSF | Ambient heat levels rising (+10) 9412 | -5/DSF | Ambient heat levels rising (+10) 9413 | -5/DSF | Entered Factory 9413 | -4/Factory | Accompanied by 12 allies 9413 | -4/Factory | Evolved 2 slots: Propulsion x1, Utility x1 9671 | -4/Factory | P-70 Sage assimilated allied 99-5NZ(g) 9706 | -4/Factory | Lost 3 allies 9787 | -4/Factory | Identified exit to Garrison 9812 | -4/Factory | Lost 3 allies 9820 | -4/Factory | Entered Garrison 9820 | -4/Garrison | Accompanied by 1 ally 9844 | -4/Garrison | Garrison Relay disabled 9850 | -4/Garrison | Triggered checkpoint 9899 | -4/Garrison | Triggered checkpoint 9899 | -4/Garrison | Triggered checkpoint 9948 | -4/Garrison | Build established: Scavenger-Sprinter 10077 | -4/Garrison | Lost 7 parts (1p3n3u) 10214 | -4/Garrison | Lost 4 parts (1n2u1w) 10274 | -4/Garrison | Spotted B-86 Titan 10380 | -4/Garrison | Triggered checkpoint 10434 | -4/Garrison | Core integrity fell below 50% 10445 | -4/Garrison | Core integrity fell below 20% 10459 | -4/Garrison | Destroyed by S-27 Virus with Autogun Last Messages --------------- 10433_ Relay Coupler [Grunt] destroyed. 10435_ Lgt. Nuclear Core destroyed. 10435_ Penetrated by Slug. 10437_ Slug penetrates Reinforced Barrier. 10437_ Penetrated by Slug. 10437_ Slug penetrates Reinforced Barrier. 10440_ Penetrated by Slug. 10440_ Slug penetrates Reinforced Barrier. 10442_ Slug penetrates H-77 Assassin. 10442_ Penetrated by Slug. 10443_ Imp. Target Analyzer destroyed. 10445_ Slug penetrates H-77 Assassin. 10451_ Penetrated by Slug. 10451_ Slug penetrates Reinforced Barrier. 10451_ Slug penetrates Wall. 10452_ Penetrated by Slug. 10454_ Med. Storage Unit destroyed. 10458_ Slug penetrates Wall. 10458_ Penetrated by Slug. [Achievement: Just Browsing] Map ----- +----------------------------------------------------+ | ??????????????????????????????????" ??????? | | ??????????????????????????????????" ???????? | | ??????????????????????????????????" ????????? | | ??????????????????????????????????" ?????????? | | ????????#####?????############??### ##?????????? | | ????????# # #?????#""""""""""#??# # # ?????????? | | ????????# #??????#"""!!!!"""#??# # ?????????? | | ????????# #??????#"" ""#??# ??????????? | | ????????# #??????#"! !"#??# # ??????????? | | ??????### #??????#"! !"#??# # #??????????? | | ??????#"# ###????#"! !"#??# # #??????????? | | ??????#"! #????#"! !"#??# # % #??????????? | | ??????#!! #????#" !"#??# # [ #??????????? | | ??????#" ! #????#"! !"#??# # #??????????? | | ??????#"# ###????#"" % ""#??# # #??????????? | | ??????### # ##???#### #######?# # #??????????? | | ????????# # ########++####;;### # #??????????? | | ????????# [ % #??????????? | | ????????# ^ h ^ #??????????? | | ????????###### ! ^ #??????????? | | ????????????# %]!######### ###########??????????? | | ????????????## #??????# #????????????????????? | | ????????????# !##??????#h #????????????????????? | | ????????????## #?????### #????????????????????? | | ?????????????# #?????#s% #????????????????????? | | ?????????????# #?????#%@! #????????????????????? | | ?????????????# #?????#/%! #?#######????????????? | | ?????????????# #?????### ### !!!!#????????????? | | ?????????????# #???????# !#????????????? | | ?????????????# #???????# !#????????????? | | ?????????????# #???????######!!!!!#????????????? | | ?????????????# #????????????#######????????????? | | ?????????????# #???????????????????????????????? | | ?????????????# #???????????????????????????????? | | ?????????????# #???????????????????????????????? | | ?????????????# #???????????????????????????????? | | ?????????????# #???????????????????????????????? | | ?????????????# #???????????????????????????????? | | ??############ #???????????????????????????????? | | ??# #???????????????????????????????? | | ??# #???????????????????????????????? | | ??# #???????????????????????????????? | | ??################???????????????????????????????? | | ?????????????????????????????????????????????????? | | ?????????????????????????????????????????????????? | | ?????????????????????????????????????????????????? | | ?????????????????????????????????????????????????? | | ?????????????????????????????????????????????????? | | ?????????????????????????????????????????????????? | | ?????????????????????????????????????????????????? | +----------------------------------------------------+ Best States ------------- Heat Dissipation 45 Energy Generation 18 Energy Capacity 1790 Matter Stores 300 Matter Capacity 300 Sight Range 18 Robot Scan Range 16 Terrain Scan Density 10 EM Shielding 2 Armor Coverage 150 Propulsion Shielding 66 Utility Shielding 66 Evasion (%) 76 Targeting Accuracy 8 Melee Accuracy 12 Target Analysis 6 Recoil Reduction 5 Particle Charging 15 Relay Coupler Types 1 Relay Coupler Value 27 Authchip Count 1 Item Schematics ----------------- Lrg. Storage Unit | -8/Materials | Scanalyzed Robot Schematics ------------------ None Fabricated ------------ R-06 Scavenger | x2 | -6/Factory | Preloaded Repaired ---------- Nothing Studied --------- Nuclear Pulse Array | -4/Factory | Hacked Alien Tech Used ----------------- None Achievements -------------- Can't Catch Me Deadly Force Dodgeball, But With Guns Just Browsing Leap Before You Look Let Me Out Of Here Prison Break Respectable Loadout We Are Legion Well-fed Force Field Challenges ------------ None Game ------ Seed NuclearAntisysClaymores Manual? 0 Play Time 01:33:04 Cumulative 27.3 hours Start 2025.11.02 @ 21:17:58 End 2025.11.02 @ 22:49:08 Sessions 1 Manual Loads 0 Difficulty Rogue Special Mode None Game No. 54 Rogue 54 Adventurer 0 Explorer 0 Win Type - Total 0 Types 0/0/0/0/0/0/0/0/0/0 Lore% 16 Gallery% 25 Achievement% 22 Wizard Run 0 Options --------- Layout 0 ASCII 1 Keyboard 1 Movement Numpad Keybinds 0 Fullscreen 1 Font 18/VGA_Max Map View 76x50 Zoom Use 0% Tactical HUD 1 Map Filters NONE Filters NONE Steam 1 RUN: b7f82781-dee6-4eba-b0dc-881e78eef76c